[Event "*** Titled Tuesday Blitz"]
[Site "Chess.com"]
[Date "2020.04.28"]
[Round "9"]
[White "garicradomir"]
[Black "davidkalashian"]
[Result "1-0"]
[WhiteElo "2390"]
[BlackElo "2556"]
[TimeControl "180+1"]
[EndTime "11:48:16 PDT"]
[Termination "garicradomir won by checkmate"]

1. e4 {[%clk 0:03:00.9]} 1... c6 {[%clk 0:02:59.1]} 2. Nf3 {[%clk 0:02:58.8]}
2... g6 {[%clk 0:03:00]} 3. d4 {[%clk 0:02:57.4]} 3... Bg7 {[%clk 0:03:00.5]} 4.
Nc3 {[%clk 0:02:57.8]} 4... d6 {[%clk 0:03:00.9]} 5. Bd3 {[%clk 0:02:55.2]} 5...
Nf6 {[%clk 0:03:00.6]} 6. a4 {[%clk 0:02:52.8]} 6... O-O {[%clk 0:03:00.4]} 7.
h3 {[%clk 0:02:49.9]} 7... Nbd7 {[%clk 0:03:00.5]} 8. O-O {[%clk 0:02:49.7]}
8... e5 {[%clk 0:03:00.8]} 9. Re1 {[%clk 0:02:47.9]} 9... Qe7 {[%clk 0:02:58.7]}
10. dxe5 {[%clk 0:02:44.1]} 10... dxe5 {[%clk 0:02:57.9]} 11. Qe2 {[%clk
0:02:38.5]} 11... Nc5 {[%clk 0:02:57.5]} 12. Be3 {[%clk 0:02:35.8]} 12... Nxd3
{[%clk 0:02:53.5]} 13. Qxd3 {[%clk 0:02:35.3]} 13... Nh5 {[%clk 0:02:50]} 14.
Rad1 {[%clk 0:02:25.5]} 14... Be6 {[%clk 0:02:46.8]} 15. Qd6 {[%clk 0:02:22.8]}
15... Qxd6 {[%clk 0:02:45.5]} 16. Rxd6 {[%clk 0:02:22.1]} 16... Rfe8 {[%clk
0:02:43.7]} 17. Ng5 {[%clk 0:02:10.1]} 17... Bf8 {[%clk 0:02:37.1]} 18. Rd2
{[%clk 0:02:07.1]} 18... Bc8 {[%clk 0:02:28.5]} 19. g4 {[%clk 0:02:06.8]} 19...
Nf4 {[%clk 0:02:22.1]} 20. Bxf4 {[%clk 0:02:06.8]} 20... exf4 {[%clk 0:02:22.3]}
21. e5 {[%clk 0:02:04.2]} 21... Kg7 {[%clk 0:02:11.8]} 22. Rd4 {[%clk
0:01:53.7]} 22... h6 {[%clk 0:02:07.7]} 23. Nf3 {[%clk 0:01:53.7]} 23... g5
{[%clk 0:02:02.2]} 24. Ne4 {[%clk 0:01:50.9]} 24... Be6 {[%clk 0:01:59.3]} 25.
Red1 {[%clk 0:01:48.1]} 25... Bd5 {[%clk 0:01:50.9]} 26. c4 {[%clk 0:01:47.4]}
26... Bxe4 {[%clk 0:01:49]} 27. Rxe4 {[%clk 0:01:48.3]} 27... Bc5 {[%clk
0:01:45.3]} 28. Re2 {[%clk 0:01:42.5]} 28... Rad8 {[%clk 0:01:41.5]} 29. Red2
{[%clk 0:01:41.4]} 29... Rxd2 {[%clk 0:01:38.6]} 30. Rxd2 {[%clk 0:01:42.3]}
30... Re7 {[%clk 0:01:35.3]} 31. Rd8 {[%clk 0:01:41.8]} 31... a5 {[%clk
0:01:31.6]} 32. Kf1 {[%clk 0:01:40.6]} 32... Bb6 {[%clk 0:01:28.2]} 33. Rb8
{[%clk 0:01:29.9]} 33... Bc5 {[%clk 0:01:21.4]} 34. Ke2 {[%clk 0:01:27.4]} 34...
f6 {[%clk 0:01:20.9]} 35. Nd2 {[%clk 0:01:07.3]} 35... Ba7 {[%clk 0:01:06.6]}
36. Ra8 {[%clk 0:01:02]} 36... Rxe5+ {[%clk 0:01:05.1]} 37. Kf3 {[%clk
0:00:57.1]} 37... Bd4 {[%clk 0:01:00.2]} 38. b3 {[%clk 0:00:49.9]} 38... Re7
{[%clk 0:00:49.3]} 39. Ne4 {[%clk 0:00:48.6]} 39... Rd7 {[%clk 0:00:40.4]} 40.
Rxa5 {[%clk 0:00:40.2]} 40... Be5 {[%clk 0:00:37.8]} 41. Ra7 {[%clk 0:00:35.2]}
41... Rd3+ {[%clk 0:00:34.1]} 42. Ke2 {[%clk 0:00:34.2]} 42... Rxb3 {[%clk
0:00:35]} 43. Nc5 {[%clk 0:00:31]} 43... Rb2+ {[%clk 0:00:25.6]} 44. Kf3 {[%clk
0:00:30.9]} 44... f5 {[%clk 0:00:20.2]} 45. Rxb7+ {[%clk 0:00:29.3]} 45... Rxb7
{[%clk 0:00:19.9]} 46. Nxb7 {[%clk 0:00:30.2]} 46... Kf6 {[%clk 0:00:19.1]} 47.
a5 {[%clk 0:00:29.2]} 47... Bb8 {[%clk 0:00:19.3]} 48. Nd8 {[%clk 0:00:25.8]}
48... fxg4+ {[%clk 0:00:18.5]} 49. hxg4 {[%clk 0:00:25.1]} 49... Ba7 {[%clk
0:00:10.5]} 50. Nxc6 {[%clk 0:00:22.7]} 50... Bc5 {[%clk 0:00:11.4]} 51. a6
{[%clk 0:00:22.4]} 51... Ke6 {[%clk 0:00:11.2]} 52. a7 {[%clk 0:00:22.4]} 52...
Bxa7 {[%clk 0:00:11.7]} 53. Nxa7 {[%clk 0:00:22.4]} 53... Kd6 {[%clk 0:00:12.6]}
54. Nb5+ {[%clk 0:00:21.9]} 54... Kc5 {[%clk 0:00:13.5]} 55. Na3 {[%clk
0:00:21.7]} 55... Kb4 {[%clk 0:00:14.4]} 56. Ke4 {[%clk 0:00:21.5]} 56... Kc5
{[%clk 0:00:14.6]} 57. f3 {[%clk 0:00:20.9]} 57... Kb4 {[%clk 0:00:15.5]} 58.
Kf5 {[%clk 0:00:19.6]} 58... Kc5 {[%clk 0:00:13]} 59. Kg6 {[%clk 0:00:19.3]}
59... Kd4 {[%clk 0:00:13.9]} 60. Kxh6 {[%clk 0:00:18.3]} 60... Ke3 {[%clk
0:00:14.8]} 61. c5 {[%clk 0:00:18.4]} 61... Kxf3 {[%clk 0:00:15.7]} 62. c6
{[%clk 0:00:19.3]} 62... Kg3 {[%clk 0:00:16.6]} 63. c7 {[%clk 0:00:20.2]} 63...
f3 {[%clk 0:00:17.2]} 64. c8=Q {[%clk 0:00:21.1]} 64... f2 {[%clk 0:00:18.1]}
65. Qc3+ {[%clk 0:00:19.4]} 65... Kh4 {[%clk 0:00:16.7]} 66. Qc1 {[%clk
0:00:17.5]} 66... Kg3 {[%clk 0:00:15.8]} 67. Qf1 {[%clk 0:00:16.9]} 67... Kh4
{[%clk 0:00:13.6]} 68. Qxf2+ {[%clk 0:00:16.5]} 68... Kh3 {[%clk 0:00:14.5]} 69.
Qf1+ {[%clk 0:00:14.9]} 69... Kh4 {[%clk 0:00:14.4]} 70. Kg6 {[%clk 0:00:14.3]}
70... Kg3 {[%clk 0:00:15.3]} 71. Kf6 {[%clk 0:00:13.2]} 71... Kh2 {[%clk
0:00:16.2]} 72. Nc4 {[%clk 0:00:12.7]} 72... Kg3 {[%clk 0:00:17.1]} 73. Ne5
{[%clk 0:00:12.4]} 73... Kh4 {[%clk 0:00:18]} 74. Nf7 {[%clk 0:00:11.8]} 74...
Kg3 {[%clk 0:00:17.1]} 75. Kg6 {[%clk 0:00:11.5]} 75... Kh4 {[%clk 0:00:18]} 76.
Qh1+ {[%clk 0:00:11.1]} 76... Kg3 {[%clk 0:00:17.3]} 77. Nh6 {[%clk 0:00:12]}
77... Kf2 {[%clk 0:00:16.7]} 78. Qh5 {[%clk 0:00:12]} 78... Kg3 {[%clk
0:00:17.6]} 79. Qxg5 {[%clk 0:00:11.9]} 79... Kh3 {[%clk 0:00:18.5]} 80. Qh5+
{[%clk 0:00:12]} 80... Kg3 {[%clk 0:00:18.1]} 81. g5 {[%clk 0:00:12.9]} 81...
Kf4 {[%clk 0:00:18]} 82. Qg4+ {[%clk 0:00:13.8]} 82... Ke5 {[%clk 0:00:17.9]}
83. Qf5+ {[%clk 0:00:13.8]} 83... Kd6 {[%clk 0:00:18.8]} 84. Qf6+ {[%clk
0:00:13.8]} 84... Kd7 {[%clk 0:00:18.6]} 85. Kh5 {[%clk 0:00:14.7]} 85... Ke8
{[%clk 0:00:19.2]} 86. g6 {[%clk 0:00:15.3]} 86... Kd7 {[%clk 0:00:20.1]} 87. g7
{[%clk 0:00:15.1]} 87... Ke8 {[%clk 0:00:21]} 88. g8=Q+ {[%clk 0:00:14.8]} 88...
Kd7 {[%clk 0:00:21.9]} 89. Qgg7+ {[%clk 0:00:14.9]} 89... Ke8 {[%clk 0:00:19.8]}
90. Qff8# {[%clk 0:00:14.4]} 1-0

[Event "*** Titled Tuesday Blitz"]
[Site "Chess.com"]
[Date "2020.04.28"]
[Round "9"]
[White "Bastiandash"]
[Black "Belka1989"]
[Result "1-0"]
[WhiteElo "2025"]
[BlackElo "2199"]
[TimeControl "180+1"]
[EndTime "11:48:24 PDT"]
[Termination "Bastiandash won by checkmate"]

1. d4 {[%clk 0:03:00.9]} 1... Nf6 {[%clk 0:02:59.8]} 2. Nf3 {[%clk 0:03:01.8]}
2... d5 {[%clk 0:03:00]} 3. c3 {[%clk 0:03:02.7]} 3... c6 {[%clk 0:02:58.1]} 4.
Bg5 {[%clk 0:03:01.4]} 4... Bf5 {[%clk 0:02:57.1]} 5. e3 {[%clk 0:03:01.1]} 5...
e6 {[%clk 0:02:57.5]} 6. Bd3 {[%clk 0:03:01.4]} 6... Bg6 {[%clk 0:02:57.6]} 7.
O-O {[%clk 0:03:00.5]} 7... Nbd7 {[%clk 0:02:53]} 8. Ne5 {[%clk 0:03:00.4]} 8...
Bd6 {[%clk 0:02:47.9]} 9. f4 {[%clk 0:02:59.2]} 9... Qc7 {[%clk 0:02:25.3]} 10.
Qe2 {[%clk 0:02:34.7]} 10... Bxd3 {[%clk 0:02:14.1]} 11. Qxd3 {[%clk 0:02:33.8]}
11... Ne4 {[%clk 0:02:14.7]} 12. Bh4 {[%clk 0:02:21.4]} 12... Ndf6 {[%clk
0:01:55.5]} 13. Bxf6 {[%clk 0:02:14.4]} 13... gxf6 {[%clk 0:01:34]} 14. Nf3
{[%clk 0:02:02.7]} 14... Rg8 {[%clk 0:01:24.1]} 15. Nbd2 {[%clk 0:02:01.8]}
15... f5 {[%clk 0:01:09.3]} 16. Qe2 {[%clk 0:01:49.2]} 16... f6 {[%clk
0:00:57.7]} 17. Nxe4 {[%clk 0:01:43]} 17... fxe4 {[%clk 0:00:53.9]} 18. Nh4
{[%clk 0:01:31.5]} 18... O-O-O {[%clk 0:00:47.4]} 19. b4 {[%clk 0:01:22.3]}
19... Be7 {[%clk 0:00:38.6]} 20. g3 {[%clk 0:00:45.1]} 20... f5 {[%clk
0:00:38.2]} 21. Ng2 {[%clk 0:00:42.4]} 21... a6 {[%clk 0:00:29.8]} 22. a4 {[%clk
0:00:41.2]} 22... Kd7 {[%clk 0:00:28.7]} 23. Qh5 {[%clk 0:00:24.8]} 23... Rh8
{[%clk 0:00:20.6]} 24. Rab1 {[%clk 0:00:24.2]} 24... Qd6 {[%clk 0:00:17.6]} 25.
Qe2 {[%clk 0:00:23.6]} 25... Bf6 {[%clk 0:00:15.2]} 26. Ra1 {[%clk 0:00:23.5]}
26... Ra8 {[%clk 0:00:12.9]} 27. Rfb1 {[%clk 0:00:23]} 27... Qc7 {[%clk
0:00:07.3]} 28. Ra2 {[%clk 0:00:20.5]} 28... Qd6 {[%clk 0:00:05.9]} 29. b5
{[%clk 0:00:20.3]} 29... axb5 {[%clk 0:00:05.4]} 30. axb5 {[%clk 0:00:21]} 30...
Rxa2 {[%clk 0:00:05.4]} 31. Qxa2 {[%clk 0:00:21.9]} 31... Rb8 {[%clk 0:00:02.7]}
32. Qa4 {[%clk 0:00:19.8]} 32... Qc7 {[%clk 0:00:02.5]} 33. b6 {[%clk
0:00:19.7]} 33... Qd6 {[%clk 0:00:02.7]} 34. Qa7 {[%clk 0:00:19.2]} 34... Ke7
{[%clk 0:00:02.6]} 35. Qa5 {[%clk 0:00:19.1]} 35... Kf7 {[%clk 0:00:03]} 36. Kf2
{[%clk 0:00:18.5]} 36... Be7 {[%clk 0:00:02.9]} 37. Ra1 {[%clk 0:00:18.4]} 37...
Qd7 {[%clk 0:00:03]} 38. Qa7 {[%clk 0:00:17.7]} 38... Qc8 {[%clk 0:00:03.4]} 39.
Ra4 {[%clk 0:00:16.8]} 39... h6 {[%clk 0:00:03.5]} 40. Ne1 {[%clk 0:00:16.3]}
40... Bd8 {[%clk 0:00:03.9]} 41. Qa5 {[%clk 0:00:15.7]} 41... Be7 {[%clk
0:00:03.4]} 42. Nc2 {[%clk 0:00:14.8]} 42... h5 {[%clk 0:00:03.9]} 43. Ne1
{[%clk 0:00:13.6]} 43... h4 {[%clk 0:00:04.1]} 44. Ng2 {[%clk 0:00:14.1]} 44...
hxg3+ {[%clk 0:00:04]} 45. hxg3 {[%clk 0:00:15]} 45... Qh8 {[%clk 0:00:03.5]}
46. Ra1 {[%clk 0:00:14.8]} 46... Qc8 {[%clk 0:00:01.9]} 47. Qa2 {[%clk
0:00:12.2]} 47... Qd8 {[%clk 0:00:01.2]} 48. Qb2 {[%clk 0:00:10.4]} 48... Qc8
{[%clk 0:00:02]} 49. Rh1 {[%clk 0:00:09.9]} 49... Qd8 {[%clk 0:00:02.8]} 50. Qb1
{[%clk 0:00:09.5]} 50... Qg8 {[%clk 0:00:02.6]} 51. Qd1 {[%clk 0:00:09.5]} 51...
Ke8 {[%clk 0:00:03]} 52. Qh5+ {[%clk 0:00:09.4]} 52... Kd7 {[%clk 0:00:03.4]}
53. Qh7 {[%clk 0:00:08.1]} 53... Qxh7 {[%clk 0:00:03.3]} 54. Rxh7 {[%clk
0:00:09]} 54... Ra8 {[%clk 0:00:03.6]} 55. Nh4 {[%clk 0:00:09.3]} 55... Ra2+
{[%clk 0:00:03.8]} 56. Kg1 {[%clk 0:00:09.5]} 56... Rc2 {[%clk 0:00:03.4]} 57.
Ng6 {[%clk 0:00:09.3]} 57... Rxc3 {[%clk 0:00:02.2]} 58. Rxe7+ {[%clk
0:00:09.3]} 58... Kc8 {[%clk 0:00:02.6]} 59. Rxe6 {[%clk 0:00:09.1]} 59... Rxe3
{[%clk 0:00:02.1]} 60. Re5 {[%clk 0:00:08.6]} 60... Rb3 {[%clk 0:00:02.3]} 61.
Rxf5 {[%clk 0:00:08.3]} 61... Rxb6 {[%clk 0:00:02.3]} 62. g4 {[%clk 0:00:06.7]}
62... e3 {[%clk 0:00:01.5]} 63. Re5 {[%clk 0:00:06.8]} 63... Rb1+ {[%clk
0:00:02.4]} 64. Kg2 {[%clk 0:00:06.7]} 64... Re1 {[%clk 0:00:03.1]} 65. Kf3
{[%clk 0:00:06.7]} 65... b5 {[%clk 0:00:03.6]} 66. Rxe3 {[%clk 0:00:06.8]} 66...
Rf1+ {[%clk 0:00:04.3]} 67. Ke2 {[%clk 0:00:06.4]} 67... Rh1 {[%clk 0:00:05]}
68. f5 {[%clk 0:00:06.6]} 68... Rh2+ {[%clk 0:00:05.9]} 69. Kd3 {[%clk
0:00:06.8]} 69... b4 {[%clk 0:00:06.3]} 70. Re2 {[%clk 0:00:06.2]} 70... Rh1
{[%clk 0:00:06.4]} 71. Rb2 {[%clk 0:00:05.9]} 71... Rh3+ {[%clk 0:00:04.6]} 72.
Kc2 {[%clk 0:00:06.2]} 72... Rh2+ {[%clk 0:00:04.7]} 73. Kb3 {[%clk 0:00:06.4]}
73... Rg2 {[%clk 0:00:05.3]} 74. Rxg2 {[%clk 0:00:05.5]} 74... Kb7 {[%clk
0:00:05.3]} 75. Ne5 {[%clk 0:00:05.7]} 75... Kb6 {[%clk 0:00:06.2]} 76. Nd3
{[%clk 0:00:05.8]} 76... Ka6 {[%clk 0:00:07.1]} 77. Nc5+ {[%clk 0:00:06.5]}
77... Kb5 {[%clk 0:00:08]} 78. g5 {[%clk 0:00:06.3]} 78... Ka5 {[%clk
0:00:08.9]} 79. g6 {[%clk 0:00:06.8]} 79... Kb5 {[%clk 0:00:09.8]} 80. Kb2
{[%clk 0:00:07.2]} 80... Ka5 {[%clk 0:00:10.7]} 81. g7 {[%clk 0:00:05.5]} 81...
b3 {[%clk 0:00:11.6]} 82. g8=Q {[%clk 0:00:05.4]} 82... Kb4 {[%clk 0:00:12.5]}
83. Qb8+ {[%clk 0:00:05.5]} 83... Ka5 {[%clk 0:00:13.4]} 84. Qa7+ {[%clk
0:00:05.6]} 84... Kb4 {[%clk 0:00:14.3]} 85. Qb6+ {[%clk 0:00:05.9]} 85... Kc4
{[%clk 0:00:12.6]} 86. Qxb3+ {[%clk 0:00:06.5]} 86... Kxd4 {[%clk 0:00:08.1]}
87. Qc3# {[%clk 0:00:07.1]} 1-0

[Event "*** Titled Tuesday Blitz"]
[Site "Chess.com"]
[Date "2020.04.28"]
[Round "9"]
[White "Lysiak_Poltorak"]
[Black "ftorodent"]
[Result "0-1"]
[WhiteElo "2372"]
[BlackElo "2686"]
[TimeControl "180+1"]
[EndTime "11:48:32 PDT"]
[Termination "ftorodent won on time"]

1. e4 {[%clk 0:03:00.9]} 1... c5 {[%clk 0:02:59.2]} 2. Nf3 {[%clk 0:02:58.2]}
2... e6 {[%clk 0:02:58.9]} 3. d4 {[%clk 0:02:57.2]} 3... cxd4 {[%clk 0:02:58.9]}
4. Nxd4 {[%clk 0:02:58.1]} 4... a6 {[%clk 0:02:59.3]} 5. Nc3 {[%clk 0:02:57.9]}
5... b5 {[%clk 0:02:58.5]} 6. Bd3 {[%clk 0:02:53.8]} 6... Bb7 {[%clk 0:02:58.7]}
7. O-O {[%clk 0:02:51.8]} 7... d6 {[%clk 0:02:57.9]} 8. Kh1 {[%clk 0:02:45]}
8... Nf6 {[%clk 0:02:55.3]} 9. f4 {[%clk 0:02:44.6]} 9... Nbd7 {[%clk
0:02:53.7]} 10. Qe1 {[%clk 0:02:41.7]} 10... Qc7 {[%clk 0:02:51.7]} 11. Bd2
{[%clk 0:02:40.6]} 11... Be7 {[%clk 0:02:35.7]} 12. a3 {[%clk 0:02:38.7]} 12...
O-O {[%clk 0:02:33.6]} 13. Qg3 {[%clk 0:02:37.5]} 13... Nc5 {[%clk 0:02:13.6]}
14. Rae1 {[%clk 0:02:03.8]} 14... g6 {[%clk 0:01:58.2]} 15. f5 {[%clk
0:01:57.7]} 15... e5 {[%clk 0:01:47.6]} 16. Nf3 {[%clk 0:01:53.9]} 16... Nh5
{[%clk 0:01:12.6]} 17. Qg4 {[%clk 0:01:49.3]} 17... Bf6 {[%clk 0:00:53.9]} 18.
Bh6 {[%clk 0:01:46.3]} 18... Bg7 {[%clk 0:00:48.4]} 19. Bxg7 {[%clk 0:01:45.9]}
19... Kxg7 {[%clk 0:00:48.9]} 20. Ng5 {[%clk 0:01:42]} 20... h6 {[%clk
0:00:36.7]} 21. Nh3 {[%clk 0:01:01.4]} 21... Nf6 {[%clk 0:00:34.6]} 22. Qg3
{[%clk 0:00:59.3]} 22... Qe7 {[%clk 0:00:33.2]} 23. Nf2 {[%clk 0:00:52.9]} 23...
Kh7 {[%clk 0:00:31.5]} 24. Ng4 {[%clk 0:00:50.8]} 24... Nxg4 {[%clk 0:00:31.5]}
25. Qxg4 {[%clk 0:00:50.1]} 25... Qg5 {[%clk 0:00:31.8]} 26. Qxg5 {[%clk
0:00:43.4]} 26... hxg5 {[%clk 0:00:31.4]} 27. f6 {[%clk 0:00:44.3]} 27... Rh8
{[%clk 0:00:30.5]} 28. Rf3 {[%clk 0:00:41.3]} 28... Kg8 {[%clk 0:00:30.3]} 29.
Rg3 {[%clk 0:00:34.6]} 29... Ne6 {[%clk 0:00:30.3]} 30. Be2 {[%clk 0:00:30.8]}
30... Rd8 {[%clk 0:00:22.3]} 31. Bg4 {[%clk 0:00:30.4]} 31... Nd4 {[%clk
0:00:21.8]} 32. Bd1 {[%clk 0:00:26.9]} 32... Ne6 {[%clk 0:00:21.3]} 33. Bg4
{[%clk 0:00:26.2]} 33... Nd4 {[%clk 0:00:20.9]} 34. Bd1 {[%clk 0:00:25.9]} 34...
Rh4 {[%clk 0:00:20.9]} 35. Rxg5 {[%clk 0:00:24.1]} 35... Rf4 {[%clk 0:00:21.1]}
36. Nd5 {[%clk 0:00:17.7]} 36... Bxd5 {[%clk 0:00:20.2]} 37. exd5 {[%clk
0:00:18.6]} 37... Rxf6 {[%clk 0:00:19.6]} 38. c3 {[%clk 0:00:18.8]} 38... Nf5
{[%clk 0:00:19.7]} 39. Bc2 {[%clk 0:00:17.7]} 39... Kg7 {[%clk 0:00:19]} 40.
Bxf5 {[%clk 0:00:15.5]} 40... Rxf5 {[%clk 0:00:19.3]} 41. Rxf5 {[%clk
0:00:15.9]} 41... gxf5 {[%clk 0:00:19.7]} 42. Kg1 {[%clk 0:00:16.2]} 42... Rc8
{[%clk 0:00:19.6]} 43. Kf2 {[%clk 0:00:13.3]} 43... Rc5 {[%clk 0:00:19.2]} 44.
Rd1 {[%clk 0:00:13.6]} 44... Kf6 {[%clk 0:00:19.4]} 45. Kf3 {[%clk 0:00:13.6]}
45... Rc4 {[%clk 0:00:18.7]} 46. g3 {[%clk 0:00:13]} 46... Re4 {[%clk
0:00:18.4]} 47. h4 {[%clk 0:00:12.5]} 47... a5 {[%clk 0:00:18]} 48. Rh1 {[%clk
0:00:11.7]} 48... Kg6 {[%clk 0:00:18.1]} 49. h5+ {[%clk 0:00:11.3]} 49... Kh6
{[%clk 0:00:18.1]} 50. Rh2 {[%clk 0:00:11.6]} 50... Rc4 {[%clk 0:00:17]} 51. Rh1
{[%clk 0:00:10.9]} 51... Rc5 {[%clk 0:00:17.1]} 52. g4 {[%clk 0:00:11]} 52...
fxg4+ {[%clk 0:00:15.8]} 53. Kxg4 {[%clk 0:00:11.9]} 53... Rxd5 {[%clk
0:00:15.8]} 54. Kf5 {[%clk 0:00:12.2]} 54... Rd2 {[%clk 0:00:14.8]} 55. Kf6
{[%clk 0:00:12.4]} 55... Rxb2 {[%clk 0:00:14.5]} 56. Kxf7 {[%clk 0:00:12.8]}
56... Rb3 {[%clk 0:00:14.7]} 57. Ke6 {[%clk 0:00:13]} 57... Rxc3 {[%clk
0:00:14.6]} 58. Kxd6 {[%clk 0:00:12.7]} 58... Rxa3 {[%clk 0:00:14.6]} 59. Kxe5
{[%clk 0:00:12.5]} 59... b4 {[%clk 0:00:14.9]} 60. Kd4 {[%clk 0:00:12.7]} 60...
b3 {[%clk 0:00:15.1]} 61. Kc3 {[%clk 0:00:12.5]} 61... a4 {[%clk 0:00:15.5]} 62.
Kb2 {[%clk 0:00:08.9]} 62... Ra2+ {[%clk 0:00:15.6]} 63. Kb1 {[%clk 0:00:09.1]}
63... Rg2 {[%clk 0:00:15.1]} 64. Rh3 {[%clk 0:00:08]} 64... Rf2 {[%clk
0:00:13.7]} 65. Rg3 {[%clk 0:00:06.3]} 65... Kxh5 {[%clk 0:00:12.5]} 66. Rc3
{[%clk 0:00:06.1]} 66... Kg5 {[%clk 0:00:11.2]} 67. Kc1 {[%clk 0:00:06.3]} 67...
Kf5 {[%clk 0:00:09.7]} 68. Rc5+ {[%clk 0:00:06.1]} 68... Ke6 {[%clk 0:00:09.5]}
69. Ra5 {[%clk 0:00:07]} 69... Rf4 {[%clk 0:00:08.2]} 70. Kb2 {[%clk 0:00:07.3]}
70... Kd6 {[%clk 0:00:07.9]} 71. Ra8 {[%clk 0:00:07.5]} 71... Kc6 {[%clk
0:00:07.8]} 72. Ka3 {[%clk 0:00:03.8]} 72... Kb7 {[%clk 0:00:07]} 73. Ra5 {[%clk
0:00:03.2]} 73... Kb6 {[%clk 0:00:07]} 74. Ra8 {[%clk 0:00:03.1]} 74... Kb5
{[%clk 0:00:06.9]} 75. Rb8+ {[%clk 0:00:03]} 75... Kc5 {[%clk 0:00:07.2]} 76.
Rc8+ {[%clk 0:00:03]} 76... Kd5 {[%clk 0:00:05.8]} 77. Rd8+ {[%clk 0:00:02.9]}
77... Kc6 {[%clk 0:00:06.1]} 78. Rc8+ {[%clk 0:00:02.6]} 78... Kb7 {[%clk
0:00:06.5]} 79. Rc5 {[%clk 0:00:03]} 79... Kb6 {[%clk 0:00:06.4]} 80. Rc8 {[%clk
0:00:02.7]} 80... Rd4 {[%clk 0:00:06.4]} 81. Ra8 {[%clk 0:00:02.4]} 81... Kb5
{[%clk 0:00:06.4]} 82. Rb8+ {[%clk 0:00:02.6]} 82... Kc5 {[%clk 0:00:05.3]} 83.
Ra8 {[%clk 0:00:02.5]} 83... Kd5 {[%clk 0:00:04.9]} 84. Rc8 {[%clk 0:00:02.2]}
84... Rc4 {[%clk 0:00:04.8]} 0-1